fUST/lending_fUST_20240814
["ID","MTS","AMOUNT","RATE_DAILY","PERIOD"]
[334883575,1723626658227,-987.96,0.00014794,2]
[334883577,1723626658236,-500.0,0.00014794,2]
[334883579,1723626658245,-500.0,0.00014794,2]
[334883581,1723626658255,-500.0,0.00014794,2]
[334883583,1723626658264,-672.95,0.00014794,2]
[334883585,1723626658273,-500.0,0.00014794,2]
[334883586,1723626658283,-500.0,0.00014794,2]
[334883588,1723626658293,-803.27,0.00014794,2]
[334883590,1723626658302,-553.37,0.00014794,2]
[334883592,1723626658311,-720.6,0.00014794,2]
[334883594,1723626658320,-1840.02,0.00014794,2]
[334883596,1723626658329,-500.0,0.00014794,2]
[334883597,1723626658341,-500.0,0.00014794,2]
[334883599,1723626658350,-500.0,0.00014794,2]
[334883601,1723626658360,-2032.76,0.00014794,2]
[334883603,1723626658369,-500.0,0.00014794,2]
[334883605,1723626658379,-552.54,0.00014794,2]
[334883607,1723626658390,-657.65,0.00014794,2]
[334883609,1723626658399,-873.31,0.00014794,2]
[334883610,1723626658409,-13404.77,0.00014794,2]
[334883612,1723626658423,-389.51312671,0.00014794,2]
[334883614,1723626658435,-741.21,0.00014794,2]
[334883616,1723626658444,-500.0,0.00014794,2]
[334883618,1723626658455,-500.0,0.00014794,2]
[334883620,1723626658464,-873.89,0.00014794,2]
[334883622,1723626658474,-703.76,0.00014794,2]
[334883624,1723626658483,-950.07,0.00014794,2]
[334883626,1723626658495,-500.0,0.00014794,2]
[334883627,1723626658506,-988.37,0.00014794,2]
[334883629,1723626658516,-4220.98,0.00014794,2]
[334883631,1723626658525,-500.0,0.00014794,2]
[334883633,1723626658535,-500.0,0.00014794,2]
[334883635,1723626658545,-938.85,0.00014794,2]
[334883637,1723626658554,-500.0,0.00014794,2]
[334883639,1723626658563,-2942.22,0.00014794,2]
[334883640,1723626658573,-500.0,0.00014794,2]
[334883642,1723626658583,-500.0,0.00014794,2]
[334883644,1723626658594,-500.0,0.00014794,2]
[334883646,1723626658603,-500.0,0.00014794,2]
[334883648,1723626658612,-747.56,0.00014794,2]
[334883650,1723626658622,-4778.59,0.00014794,2]
[334883652,1723626658632,-500.0,0.00014794,2]
[334883653,1723626658643,-500.0,0.00014794,2]
[334883654,1723626658654,-597.87,0.00014794,2]
[334883655,1723626658663,-1325.3,0.00014794,2]
[334883656,1723626658672,-179.76679732,0.00015,2]
[334883657,1723626658684,-507.34,0.00015,2]
[334883658,1723626658694,-1501.13498807,0.00015,2]
[334883659,1723626658704,-1110.22317588,0.00015,2]
[334883660,1723626658714,-476.41109435,0.0001503,2]
[334883661,1723626658723,-500.0,0.00015068,2]
[334883662,1723626658735,-506.32307795,0.00015068,2]
[334883663,1723626658744,-216.79219296,0.00015068,2]
[334883664,1723626658754,-500.0,0.00015068,2]
[334883665,1723626658763,-257.84705382,0.00015068,2]
[334883666,1723626658772,-500.0,0.00015068,2]
[334883667,1723626658783,-703.43,0.00015068,2]
[334883668,1723626658792,-158.65136535,0.00015068,2]
[334883669,1723626658801,-515.13,0.00015068,2]
[334883670,1723626658811,-500.0,0.00015068,2]
[334883671,1723626658820,-594.72,0.00015068,2]
[334883672,1723626658830,-152.62142917,0.00015068,2]
[334883673,1723626658840,-458.73288378,0.00015068,2]
[334883674,1723626658850,-500.0,0.00015068,2]
[334883675,1723626658859,-759.96,0.00015068,2]
[334883676,1723626658869,-500.0,0.00015068,2]
[334883677,1723626658878,-500.0,0.00015068,2]
[334883678,1723626658888,-500.0,0.00015068,2]
[334883679,1723626658897,-500.0,0.00015068,2]
[334883680,1723626658906,-500.0,0.00015068,2]
[334883681,1723626658916,-500.0,0.00015068,2]
[334883682,1723626658925,-500.0,0.00015068,2]
[334883684,1723626658935,-500.0,0.00015068,2]
[334883685,1723626658945,-500.0,0.00015068,2]
[334883687,1723626658954,-500.0,0.00015068,2]
[334883688,1723626658972,-1569.85,0.00015068,2]
[334883691,1723626658990,-500.0,0.00015068,2]
[334883693,1723626659002,-500.0,0.00015068,2]
[334883696,1723626659017,-500.0,0.00015068,2]
[334883699,1723626659032,-261.338004,0.00015068,2]
[334883701,1723626659048,-500.0,0.00015068,2]
[334883704,1723626659063,-500.0,0.00015068,2]
[334883707,1723626659079,-500.0,0.00015068,2]
[334883709,1723626659093,-700.2,0.00015068,2]
[334883712,1723626659107,-500.0,0.00015068,2]
[334883715,1723626659121,-500.0,0.00015068,2]
[334883717,1723626659135,-675.46,0.00015068,2]
[334883719,1723626659147,-824.21,0.00015068,2]
[334883721,1723626659160,-500.0,0.00015068,2]
[334883724,1723626659175,-575.46620156,0.00015068,2]
[334883726,1723626659189,-1149.1,0.00015068,2]
[334883729,1723626659205,-1040.93,0.00015068,2]
[334883732,1723626659220,-500.0,0.00015068,2]
[334883734,1723626659231,-500.0,0.00015068,2]
[334883736,1723626659242,-500.0,0.00015068,2]
[334883738,1723626659256,-500.0,0.00015068,2]
[334883741,1723626659272,-568.29,0.00015068,2]
[334883743,1723626659283,-500.0,0.00015068,2]
[334883746,1723626659297,-500.0,0.00015068,2]
[334883748,1723626659312,-242.207258,0.00015068,2]
[334883751,1723626659323,-623.16,0.00015068,2]
[334883753,1723626659335,-242.207258,0.00015068,2]
[334883755,1723626659347,-539.7088332,0.00015068,2]
[334883757,1723626659360,-276.281811,0.00015068,2]
[334883760,1723626659372,-276.281811,0.00015068,2]
[334883762,1723626659384,-673.6,0.00015068,2]
[334883765,1723626659396,-639.99,0.00015068,2]
[334883767,1723626659408,-500.0,0.00015068,2]
[334883769,1723626659422,-500.0,0.00015068,2]
[334883771,1723626659436,-987.96,0.00015068,2]
[334883774,1723626659447,-500.0,0.00015068,2]
[334883776,1723626659461,-500.0,0.00015068,2]
[334883778,1723626659472,-500.0,0.00015068,2]
[334883781,1723626659485,-672.95,0.00015068,2]
[334883783,1723626659499,-500.0,0.00015068,2]
[334883785,1723626659512,-500.0,0.00015068,2]
[334883788,1723626659528,-803.27,0.00015068,2]
[334883790,1723626659542,-553.37,0.00015068,2]
[334883793,1723626659556,-720.6,0.00015068,2]
[334883795,1723626659571,-1840.02,0.00015068,2]
[334883798,1723626659585,-500.0,0.00015068,2]
[334883801,1723626659600,-500.0,0.00015068,2]
[334883803,1723626659614,-500.0,0.00015068,2]
[334883805,1723626659627,-2032.76,0.00015068,2]
[334883808,1723626659641,-500.0,0.00015068,2]
[334883810,1723626659656,-552.54,0.00015068,2]
[334883813,1723626659669,-657.65,0.00015068,2]
[334883815,1723626659683,-404.611122,0.00015068,2]
[334883818,1723626659698,-873.31,0.00015068,2]
[334883820,1723626659712,-13404.77,0.00015068,2]
[334883823,1723626659725,-404.611122,0.00015068,2]
[334883825,1723626659739,-151.0,0.00015068,2]
[334883828,1723626659752,-2275.453086,0.00015068,2]
[334883830,1723626659765,-741.21,0.00015068,2]
[334883832,1723626659779,-2275.453086,0.00015068,2]
[334883835,1723626659793,-500.0,0.00015068,2]
[334883837,1723626659806,-500.0,0.00015068,2]
[334883840,1723626659820,-873.89,0.00015068,2]
[334883842,1723626659831,-703.76,0.00015068,2]
[334883844,1723626659845,-151.0,0.00015068,2]
[334883847,1723626659858,-151.0,0.00015068,2]
[334883849,1723626659872,-950.07,0.00015068,2]
[334883852,1723626659886,-500.0,0.00015068,2]
[334883854,1723626659899,-988.37,0.00015068,2]
[334883856,1723626659912,-4220.98,0.00015068,2]
[334883858,1723626659924,-500.0,0.00015068,2]
[334883861,1723626659938,-500.0,0.00015068,2]
[334883863,1723626659950,-1416.324261,0.00015068,2]
[334883866,1723626659964,-1416.324261,0.00015068,2]
[334883868,1723626659977,-938.85,0.00015068,2]
[334883870,1723626659991,-500.0,0.00015068,2]
[334883873,1723626660004,-2942.22,0.00015068,2]
[334883875,1723626660019,-500.0,0.00015068,2]
[334883878,1723626660032,-500.0,0.00015068,2]
[334883880,1723626660045,-500.0,0.00015068,2]
[334883882,1723626660058,-500.0,0.00015068,2]
[334883885,1723626660071,-747.56,0.00015068,2]
[334883887,1723626660083,-4778.59,0.00015068,2]
[334883889,1723626660096,-192.17685603,0.00015068,2]
[334883892,1723626660110,-500.0,0.00015068,2]
[334883894,1723626660125,-597.87,0.00015068,2]
[334883897,1723626660140,-1325.3,0.00015068,2]
[334883912,1723626660279,-151.0,0.00015261,2]
[334883915,1723626660296,-500.0,0.00015342,2]
[334883917,1723626660307,-500.0,0.00015342,2]
[334883919,1723626660319,-506.95612343,0.00015342,2]
[334883922,1723626660330,-703.43,0.00015342,2]
[334883924,1723626660340,-515.13,0.00015342,2]
[334883926,1723626660350,-500.0,0.00015342,2]
[334883928,1723626660361,-594.72,0.00015342,2]
[334883930,1723626660370,-500.0,0.00015342,2]
[334883932,1723626660380,-759.96,0.00015342,2]
[334883934,1723626660391,-500.0,0.00015342,2]
[334883936,1723626660400,-500.0,0.00015342,2]
[334883938,1723626660412,-500.0,0.00015342,2]
[334883940,1723626660427,-500.0,0.00015342,2]
[334883942,1723626660444,-500.0,0.00015342,2]
[334883944,1723626660453,-500.0,0.00015342,2]
[334883946,1723626660465,-500.0,0.00015342,2]
[334883948,1723626660474,-500.0,0.00015342,2]
[334883950,1723626660484,-270.7104451,0.00015342,2]
[334883952,1723626660496,-500.0,0.00015342,2]
[334883954,1723626660505,-1569.85,0.00015342,2]
[334883956,1723626660515,-500.0,0.00015342,2]
[334883958,1723626660525,-500.0,0.00015342,2]
[334883960,1723626660535,-486.64610159,0.00015342,2]
[334883962,1723626660544,-500.0,0.00015342,2]
[334883964,1723626660554,-500.0,0.00015342,2]
[334883966,1723626660563,-700.2,0.00015342,2]
[334883968,1723626660573,-500.0,0.00015342,2]
[334883970,1723626660583,-274.47079302,0.00015342,2]
[334883972,1723626660593,-675.46,0.00015342,2]
[334883974,1723626660603,-824.21,0.00015342,2]
[334883976,1723626660612,-500.0,0.00015342,2]
[334883978,1723626660622,-1149.1,0.00015342,2]
[334883980,1723626660631,-1040.93,0.00015342,2]
[334883982,1723626660641,-500.0,0.00015342,2]
[334883984,1723626660650,-151.0,0.00015342,2]
[334883986,1723626660660,-500.0,0.00015342,2]
[334883988,1723626660670,-500.0,0.00015342,2]
[334883990,1723626660679,-442.25236912,0.00015342,2]
[334883992,1723626660688,-568.29,0.00015342,2]
[334883994,1723626660698,-500.0,0.00015342,2]
[334883996,1723626660709,-716.309019,0.00015342,2]
[334883998,1723626660718,-716.309019,0.00015342,2]
[334884000,1723626660728,-500.0,0.00015342,2]
[334884002,1723626660738,-623.16,0.00015342,2]
[334884004,1723626660747,-617.769582,0.00015342,2]
[334884006,1723626660756,-673.6,0.00015342,2]
[334884008,1723626660766,-617.769582,0.00015342,2]
[334884010,1723626660776,-639.99,0.00015342,2]
[334884012,1723626660785,-500.0,0.00015342,2]
[334884014,1723626660794,-151.0,0.00015342,2]
[334884016,1723626660804,-449.188265,0.00015342,2]
[334884018,1723626660813,-500.0,0.00015342,2]
[334884020,1723626660822,-151.0,0.00015342,2]
[334884022,1723626660832,-449.188265,0.00015342,2]
[334884024,1723626660842,-987.96,0.00015342,2]
[334884026,1723626660852,-500.0,0.00015342,2]
[334884028,1723626660864,-500.0,0.00015342,2]
[334884030,1723626660875,-500.0,0.00015342,2]
[334884032,1723626660885,-672.95,0.00015342,2]
[334884034,1723626660895,-151.0,0.00015342,2]
[334884036,1723626660904,-500.0,0.00015342,2]
[334884038,1723626660914,-500.0,0.00015342,2]
[334884040,1723626660924,-803.27,0.00015342,2]
[334884042,1723626660936,-2137.024966,0.00015342,2]
[334884044,1723626660946,-553.37,0.00015342,2]
[334884046,1723626660957,-2137.024966,0.00015342,2]
[334884048,1723626660967,-289.758776,0.00015342,2]
[334884050,1723626660976,-720.6,0.00015342,2]
[334884052,1723626660986,-1840.02,0.00015342,2]
[334884054,1723626660995,-500.0,0.00015342,2]
[334884056,1723626661004,-289.758776,0.00015342,2]
[334884058,1723626661014,-500.0,0.00015342,2]
[334884060,1723626661024,-151.0,0.00015342,2]
[334884062,1723626661033,-500.0,0.00015342,2]
[334884064,1723626661044,-1518.615014,0.00015342,2]
[334884066,1723626661054,-2032.76,0.00015342,2]
[334884068,1723626661064,-500.0,0.00015342,2]
[334884070,1723626661073,-552.54,0.00015342,2]
[334884072,1723626661083,-1518.615014,0.00015342,2]
[334884074,1723626661092,-657.65,0.00015342,2]
[334884076,1723626661101,-300.772827,0.00015342,2]
[334884078,1723626661110,-300.772827,0.00015342,2]
[334884080,1723626661119,-873.31,0.00015342,2]
[334884082,1723626661130,-13404.77,0.00015342,2]
[334884084,1723626661139,-741.21,0.00015342,2]
[334884086,1723626661149,-500.0,0.00015342,2]
[334884088,1723626661159,-500.0,0.00015342,2]
[334884090,1723626661168,-873.89,0.00015342,2]
[334884092,1723626661178,-703.76,0.00015342,2]
[334884094,1723626661188,-950.07,0.00015342,2]
[334884096,1723626661198,-500.0,0.00015342,2]
[334884098,1723626661208,-988.37,0.00015342,2]
[334884100,1723626661217,-4220.98,0.00015342,2]
[334884102,1723626661227,-500.0,0.00015342,2]
[334884104,1723626661236,-500.0,0.00015342,2]
[334884106,1723626661245,-938.85,0.00015342,2]
[334884108,1723626661255,-500.0,0.00015342,2]
[334884110,1723626661266,-2942.22,0.00015342,2]
[334884112,1723626661277,-500.0,0.00015342,2]
[334884115,1723626661290,-500.0,0.00015342,2]
[334884117,1723626661301,-500.0,0.00015342,2]
[334884119,1723626661311,-500.0,0.00015342,2]
[334884121,1723626661320,-747.56,0.00015342,2]
[334884123,1723626661331,-4778.59,0.00015342,2]
[334884125,1723626661342,-500.0,0.00015342,2]
[334884127,1723626661351,-597.87,0.00015342,2]
[334884129,1723626661361,-186.748546,0.00015342,2]
[334884131,1723626661373,-1325.3,0.00015342,2]
[334884133,1723626661383,-400.17755878,0.00015342,2]
[334884135,1723626661394,-400.0,0.00015342,2]
[334884137,1723626661405,-388.42045515,0.000154,2]
[334884139,1723626661419,-1000.0,0.00015401,2]
[334884141,1723626661431,-3162.0,0.00015434,2]
[334884143,1723626661441,-1000.0,0.0001547,2]
[334884146,1723626661452,-1000.0,0.000155,2]
[334884148,1723626661465,-1809.6003,0.000156,2]
[334884150,1723626661476,-1809.6003,0.000156,2]
[334884152,1723626661487,-203.52286462,0.00015615,2]
[334884154,1723626661499,-5989.19475674,0.00015615,2]
[334884156,1723626661508,-151.0,0.00015615,2]
[334884158,1723626661518,-151.0,0.00015615,2]
[334884160,1723626661527,-151.0,0.00015615,2]
[334884162,1723626661537,-151.0,0.00015615,2]
[334884164,1723626661546,-1783.97391,0.00015615,2]
[334884166,1723626661556,-1783.97391,0.00015615,2]
[334884168,1723626661565,-626.50293494,0.00015616,2]
[334884170,1723626661575,-161.29412196,0.00015616,2]
[334884172,1723626661588,-703.43,0.00015616,2]
[334884175,1723626661599,-515.13,0.00015616,2]
[334884177,1723626661611,-291.4911243,0.00015616,2]
[334884179,1723626661621,-594.72,0.00015616,2]
[334884181,1723626661632,-151.0,0.00015616,2]
[334884183,1723626661644,-151.0,0.00015616,2]
[334884185,1723626661657,-500.0,0.00015616,2]
[334884188,1723626661667,-151.0,0.00015616,2]
[334884190,1723626661681,-151.0,0.00015616,2]
[334884192,1723626661691,-759.96,0.00015616,2]
[334884194,1723626661701,-151.0,0.00015616,2]
[334884196,1723626661712,-414.9381251,0.00015616,2]
[334884198,1723626661723,-500.0,0.00015616,2]
[334884200,1723626661733,-151.0,0.00015616,2]
[334884202,1723626661745,-500.0,0.00015616,2]
[334884204,1723626661756,-500.0,0.00015616,2]
[334884207,1723626661768,-500.0,0.00015616,2]
[334884209,1723626661777,-500.0,0.00015616,2]
[334884211,1723626661787,-500.0,0.00015616,2]
[334884213,1723626661797,-500.0,0.00015616,2]
[334884215,1723626661806,-500.0,0.00015616,2]
[334884217,1723626661816,-1569.85,0.00015616,2]
[334884219,1723626661825,-500.0,0.00015616,2]
[334884221,1723626661835,-500.0,0.00015616,2]
[334884223,1723626661845,-500.0,0.00015616,2]
[334884225,1723626661857,-500.0,0.00015616,2]
[334884227,1723626661867,-700.2,0.00015616,2]
[334884229,1723626661876,-500.0,0.00015616,2]
[334884231,1723626661886,-675.46,0.00015616,2]
[334884233,1723626661896,-824.21,0.00015616,2]
[334884235,1723626661905,-500.0,0.00015616,2]
[334884237,1723626661915,-1149.1,0.00015616,2]
[334884239,1723626661925,-1040.93,0.00015616,2]
[334884241,1723626661937,-500.0,0.00015616,2]
[334884243,1723626661949,-500.0,0.00015616,2]
[334884245,1723626661959,-500.0,0.00015616,2]
[334884247,1723626661970,-568.29,0.00015616,2]
[334884249,1723626661982,-500.0,0.00015616,2]
[334884251,1723626661992,-500.0,0.00015616,2]
[334884254,1723626662003,-623.16,0.00015616,2]
[334884256,1723626662015,-673.6,0.00015616,2]
[334884257,1723626662026,-639.99,0.00015616,2]
[334884258,1723626662036,-500.0,0.00015616,2]
[334884259,1723626662046,-500.0,0.00015616,2]
[334884260,1723626662057,-987.96,0.00015616,2]
[334884261,1723626662068,-500.0,0.00015616,2]
[334884262,1723626662079,-500.0,0.00015616,2]
[334884263,1723626662089,-672.95,0.00015616,2]
[334884264,1723626662098,-500.0,0.00015616,2]
[334884265,1723626662107,-500.0,0.00015616,2]
[334884266,1723626662117,-803.27,0.00015616,2]
[334884267,1723626662126,-553.37,0.00015616,2]
[334884268,1723626662136,-720.6,0.00015616,2]
[334884269,1723626662145,-1840.02,0.00015616,2]
[334884270,1723626662155,-500.0,0.00015616,2]
[334884271,1723626662166,-500.0,0.00015616,2]
[334884272,1723626662175,-500.0,0.00015616,2]
[334884273,1723626662187,-2032.76,0.00015616,2]
[334884275,1723626662196,-558.59782445,0.00015616,2]
[334884277,1723626662206,-552.54,0.00015616,2]
[334884279,1723626662215,-657.65,0.00015616,2]
[334884281,1723626662225,-873.31,0.00015616,2]
[334884282,1723626662235,-13404.77,0.00015616,2]
[334884285,1723626662246,-741.21,0.00015616,2]
[334884287,1723626662257,-500.0,0.00015616,2]
[334884289,1723626662271,-500.0,0.00015616,2]
[334884291,1723626662283,-873.89,0.00015616,2]
[334884293,1723626662293,-703.76,0.00015616,2]
[334884295,1723626662305,-950.07,0.00015616,2]
[334884298,1723626662316,-500.0,0.00015616,2]
[334884300,1723626662325,-988.37,0.00015616,2]
[334884302,1723626662335,-4220.98,0.00015616,2]
[334884304,1723626662345,-500.0,0.00015616,2]
[334884306,1723626662355,-500.0,0.00015616,2]
[334884308,1723626662365,-938.85,0.00015616,2]
[334884310,1723626662375,-416.35794803,0.00015616,2]
[334884312,1723626662385,-2942.22,0.00015616,2]
[334884314,1723626662396,-500.0,0.00015616,2]
[334884316,1723626662407,-500.0,0.00015616,2]
[334884318,1723626662419,-500.0,0.00015616,2]
[334884320,1723626662431,-500.0,0.00015616,2]
[334884322,1723626662440,-747.56,0.00015616,2]
[334884324,1723626662450,-4778.59,0.00015616,2]
[334884326,1723626662462,-500.0,0.00015616,2]
[334884328,1723626662473,-597.87,0.00015616,2]
[334884330,1723626662483,-1325.3,0.00015616,2]
[334884332,1723626662495,-500.0,0.00015628,2]
[334884334,1723626662505,-274.63311339,0.00015707,2]
[334884336,1723626662514,-1164.18655458,0.00015708,2]
[334884338,1723626662524,-14255.47414227,0.00015708,2]
[334884340,1723626662535,-1993.92519037,0.00015708,2]
[334884343,1723626662546,-3091.13727691,0.00015708,2]
[334884345,1723626662557,-10060.64477002,0.00015708,2]
[334884347,1723626662569,-21946.68659102,0.00015708,2]
[334884349,1723626662581,-151.0,0.00015708,2]
[334884351,1723626662591,-229.326224,0.00015708,2]
[334884353,1723626662601,-229.326224,0.00015708,2]
[334884355,1723626662610,-35048.59757953,0.00015709,2]
[334884357,1723626662620,-151.0,0.00015709,2]
[334884359,1723626662629,-151.0,0.00015709,2]
[334884361,1723626662640,-1416.324261,0.00015709,2]
[334884363,1723626662650,-1416.324261,0.00015709,2]
[334884365,1723626662660,-465.57055472,0.00015781,2]
[334884367,1723626662670,-150.0,0.00015873,2]
[334884369,1723626662680,-703.43,0.0001589,2]
[334884371,1723626662690,-515.13,0.0001589,2]
[334884373,1723626662700,-594.72,0.0001589,2]
[334884375,1723626662710,-500.0,0.0001589,2]
[334884377,1723626662720,-759.96,0.0001589,2]
[334884379,1723626662733,-500.0,0.0001589,2]
[334884381,1723626662745,-500.0,0.0001589,2]
[334884383,1723626662756,-500.0,0.0001589,2]
[334884395,1723626662765,-500.0,0.0001589,2]
[334884397,1723626662873,-500.0,0.0001589,2]
[334884399,1723626662883,-500.0,0.0001589,2]
[334884401,1723626662892,-500.0,0.0001589,2]
[334884403,1723626662901,-500.0,0.0001589,2]
[334884405,1723626662910,-1569.85,0.0001589,2]
[334884407,1723626662920,-500.0,0.0001589,2]
[334884409,1723626662930,-348.24921599,0.0001589,2]
[334884411,1723626662939,-500.0,0.0001589,2]
[334884413,1723626662949,-500.0,0.0001589,2]
[334884415,1723626662958,-700.2,0.0001589,2]
[334884417,1723626662967,-500.0,0.0001589,2]
[334884419,1723626662977,-675.46,0.0001589,2]
[334884421,1723626662987,-824.21,0.0001589,2]
[334884423,1723626662997,-500.0,0.0001589,2]
[334884425,1723626663007,-1149.1,0.0001589,2]
[334884427,1723626663017,-1040.93,0.0001589,2]
[334884429,1723626663026,-500.0,0.0001589,2]
[334884431,1723626663037,-500.0,0.0001589,2]
[334884433,1723626663047,-500.0,0.0001589,2]
[334884435,1723626663058,-568.29,0.0001589,2]
[334884437,1723626663068,-500.0,0.0001589,2]
[334884439,1723626663077,-500.0,0.0001589,2]
[334884441,1723626663087,-242.207258,0.0001589,2]
[334884443,1723626663096,-623.16,0.0001589,2]
[334884445,1723626663106,-242.207258,0.0001589,2]
[334884447,1723626663115,-276.281811,0.0001589,2]
[334884449,1723626663125,-276.281811,0.0001589,2]
[334884451,1723626663134,-673.6,0.0001589,2]
[334884453,1723626663144,-639.99,0.0001589,2]
[334884455,1723626663154,-500.0,0.0001589,2]
[334884457,1723626663163,-500.0,0.0001589,2]
[334884459,1723626663174,-987.96,0.0001589,2]
[334884461,1723626663184,-500.0,0.0001589,2]
[334884463,1723626663194,-500.0,0.0001589,2]
[334884465,1723626663204,-151.0,0.0001589,2]
[334884467,1723626663214,-672.95,0.0001589,2]
[334884469,1723626663224,-500.0,0.0001589,2]
[334884471,1723626663233,-500.0,0.0001589,2]
[334884473,1723626663242,-803.27,0.0001589,2]
[334884474,1723626663252,-2137.024966,0.0001589,2]
[334884476,1723626663262,-553.37,0.0001589,2]
[334884479,1723626663272,-2137.024966,0.0001589,2]
[334884481,1723626663282,-289.758776,0.0001589,2]
[334884482,1723626663291,-720.6,0.0001589,2]
[334884485,1723626663301,-1840.02,0.0001589,2]
[334884487,1723626663311,-500.0,0.0001589,2]
[334884489,1723626663321,-289.758776,0.0001589,2]
[334884490,1723626663331,-500.0,0.0001589,2]
[334884493,1723626663342,-151.0,0.0001589,2]
[334884494,1723626663351,-500.0,0.0001589,2]
[334884496,1723626663361,-1518.615014,0.0001589,2]
[334884498,1723626663371,-2032.76,0.0001589,2]
[334884500,1723626663380,-552.54,0.0001589,2]
[334884502,1723626663391,-1518.615014,0.0001589,2]
[334884504,1723626663401,-657.65,0.0001589,2]
[334884506,1723626663411,-300.772827,0.0001589,2]
[334884508,1723626663425,-300.772827,0.0001589,2]
[334884511,1723626663437,-404.611122,0.0001589,2]
[334884513,1723626663447,-873.31,0.0001589,2]
[334884515,1723626663458,-13404.77,0.0001589,2]
[334884517,1723626663470,-404.611122,0.0001589,2]
[334884519,1723626663481,-151.0,0.0001589,2]
[334884521,1723626663492,-2275.453086,0.0001589,2]
[334884523,1723626663503,-741.21,0.0001589,2]
[334884525,1723626663513,-2275.453086,0.0001589,2]
[334884527,1723626663523,-500.0,0.0001589,2]
[334884529,1723626663532,-500.0,0.0001589,2]
[334884531,1723626663542,-873.89,0.0001589,2]
[334884533,1723626663552,-703.76,0.0001589,2]
[334884535,1723626663563,-950.07,0.0001589,2]
[334884537,1723626663574,-500.0,0.0001589,2]
[334884539,1723626663583,-988.37,0.0001589,2]
[334884541,1723626663594,-4220.98,0.0001589,2]
[334884544,1723626663605,-500.0,0.0001589,2]
[334884546,1723626663615,-500.0,0.0001589,2]
[334884548,1723626663625,-938.85,0.0001589,2]
[334884550,1723626663635,-2942.22,0.0001589,2]
[334884552,1723626663646,-500.0,0.0001589,2]
[334884554,1723626663658,-523.64708523,0.0001589,2]
[334884556,1723626663669,-500.0,0.0001589,2]
[334884558,1723626663678,-500.0,0.0001589,2]
[334884560,1723626663688,-747.56,0.0001589,2]
[334884562,1723626663699,-4778.59,0.0001589,2]
[334884564,1723626663709,-341.79120999,0.0001589,2]
[334884566,1723626663720,-597.87,0.0001589,2]
[334884568,1723626663729,-2809.57,0.000159,2]
[334884570,1723626663739,-133174.34,0.000159,2]
[334884572,1723626663749,-151.0,0.000159,2]
[334884574,1723626663759,-151.0,0.000159,2]
[334884576,1723626663768,-151.0,0.000159,2]
[334884578,1723626663778,-151.0,0.000159,2]
[334884580,1723626663788,-1783.97391,0.000159,2]
[334884582,1723626663798,-1783.97391,0.000159,2]
[334884584,1723626663808,-151.0,0.000159,2]
[334884586,1723626663818,-716.309019,0.000159,2]
[334884588,1723626663827,-716.309019,0.000159,2]
[334884590,1723626663837,-617.769582,0.000159,2]